[Event "Božićni turnir u VaraždinskimToplicama 26.12.2025."]
[Site "Varazdinske Toplice, Croatia"]
[Date "2025.12.26"]
[Round "3.7"]
[White "Soelkner, Julian"]
[Black "Sagovac, Kristijan"]
[Result "*"]
[TimeControl "10"]
[WhiteFideId "1665421"]
[BlackFideId "14542960"]
[WhiteElo "1661"]
[BlackElo "2014"]

1. d4 {[%clk 00:09:58]} {[%emt 00:00:02]} Nf6 {[%clk 00:09:59]} 2. Bf4 {[%clk
00:09:57]} {[%emt 00:00:01]} e6 {[%clk 00:09:58]} 3. Nf3 {[%clk 00:09:56]}
{[%emt 00:00:01]} b6 {[%clk 00:09:58]} 4. c4 {[%clk 00:09:52]} {[%emt
00:00:04]} Bb7 {[%clk 00:09:57]} 5. Nc3 {[%clk 00:09:51]} {[%emt 00:00:01]} Be7
{[%clk 00:09:54]} {[%emt 00:00:03]} 6. e3 {[%clk 00:09:49]} {[%emt 00:00:02]}
O-O {[%clk 00:09:52]} {[%emt 00:00:01]} 7. Bd3 {[%clk 00:09:48]} d5 {[%clk
00:09:51]} {[%emt 00:00:01]} 8. cxd5 {[%clk 00:09:40]} {[%emt 00:00:09]} exd5
{[%clk 00:09:49]} {[%emt 00:00:01]} 9. O-O {[%clk 00:09:34]} {[%emt 00:00:06]}
Nbd7 {[%clk 00:09:48]} {[%emt 00:00:01]} 10. Rc1 {[%clk 00:09:33]} {[%emt
00:00:02]} Rc8 {[%clk 00:09:47]} {[%emt 00:00:01]} 11. Ne2 {[%clk 00:09:03]}
{[%emt 00:00:30]} c5 {[%clk 00:09:40]} {[%emt 00:00:06]} 12. Ne5 {[%clk
00:08:45]} {[%emt 00:00:18]} Nxe5 {[%clk 00:09:29]} {[%emt 00:00:10]} 13. Bxe5
{[%clk 00:08:43]} {[%emt 00:00:03]} Re8 {[%clk 00:08:54]} {[%emt 00:00:35]} 14.
Ng3 {[%clk 00:08:29]} {[%emt 00:00:14]} Bd6 {[%clk 00:08:23]} {[%emt 00:00:31]}
15. f4 {[%clk 00:07:46]} {[%emt 00:00:44]} Ne4 {[%clk 00:07:49]} {[%emt
00:00:33]} 16. Nf5 {[%clk 00:06:40]} {[%emt 00:01:06]} Bxe5 {[%clk 00:06:34]}
{[%emt 00:01:15]} 17. dxe5 {[%clk 00:05:39]} {[%emt 00:01:01]} Rc7 {[%clk
00:04:27]} {[%emt 00:02:07]} 18. Bxe4 {[%clk 00:04:44]} {[%emt 00:00:56]} dxe4
{[%clk 00:04:25]} {[%emt 00:00:01]} 19. Qg4 {[%clk 00:04:43]} {[%emt 00:00:01]}
g6 {[%emt 00:00:31]} 20. Nd6 {[%clk 00:04:26]} {[%emt 00:00:17]} Re6 {[%clk
00:03:34]} {[%emt 00:00:20]} 21. Rfd1 {[%clk 00:04:05]} {[%emt 00:00:20]} Qe7
{[%clk 00:03:25]} {[%emt 00:00:09]} 22. Nxb7 {[%clk 00:03:06]} {[%emt
00:01:00]} Rxb7 23. Rd6 {[%clk 00:03:04]} {[%emt 00:00:01]} Rd7 {[%emt
00:00:15]} 24. Rxe6 {[%clk 00:03:01]} {[%emt 00:00:03]} *

[Event "Božićni turnir u VaraždinskimToplicama 26.12.2025."]
[Site "Varazdinske Toplice, Croatia"]
[Date "2025.12.26"]
[Round "3.8"]
[White "Sostaric, Denis"]
[Black "Srnec, Sladjan"]
[Result "*"]
[TimeControl "10"]
[WhiteFideId "14615851"]
[BlackFideId "14524554"]
[WhiteElo "1868"]
[BlackElo "1795"]

1. e4 {[%clk 00:09:57]} {[%emt 00:00:02]} d6 {[%clk 00:10:00]} 2. d4 {[%clk
00:09:53]} {[%emt 00:00:05]} g6 {[%clk 00:09:59]} 3. Nc3 {[%clk 00:09:50]}
{[%emt 00:00:04]} Bg7 {[%clk 00:09:59]} 4. Be3 {[%clk 00:09:42]} {[%emt
00:00:07]} Nf6 {[%clk 00:09:58]} {[%emt 00:00:02]} 5. f3 {[%clk 00:09:33]}
{[%emt 00:00:08]} O-O {[%clk 00:09:57]} {[%emt 00:00:02]} 6. g4 {[%emt
00:00:02]} Nbd7 7. h4 {[%clk 00:09:29]} {[%emt 00:00:02]} c5 {[%clk 00:09:56]}
8. Nge2 {[%clk 00:09:08]} {[%emt 00:00:22]} h5 {[%clk 00:09:44]} {[%emt
00:00:11]} 9. gxh5 {[%clk 00:09:03]} {[%emt 00:00:05]} Nxh5 {[%clk 00:09:41]}
{[%emt 00:00:03]} 10. Qd2 {[%clk 00:09:01]} {[%emt 00:00:02]} cxd4 {[%clk
00:09:01]} {[%emt 00:00:41]} 11. Bxd4 {[%clk 00:08:59]} {[%emt 00:00:02]} e5
{[%clk 00:09:01]} 12. Be3 {[%clk 00:08:54]} {[%emt 00:00:03]} Ndf6 {[%clk
00:08:55]} {[%emt 00:00:08]} 13. O-O-O {[%clk 00:08:47]} {[%emt 00:00:06]} Be6
{[%clk 00:08:54]} {[%emt 00:00:02]} 14. Kb1 {[%clk 00:08:34]} {[%emt 00:00:13]}
Qa5 {[%clk 00:08:52]} {[%emt 00:00:02]} 15. Bh3 {[%clk 00:08:10]} {[%emt
00:00:23]} Bc4 {[%clk 00:07:50]} {[%emt 00:01:03]} 16. Nc1 {[%clk 00:07:48]}
{[%emt 00:00:22]} Rad8 {[%clk 00:06:48]} {[%emt 00:01:01]} 17. Bg5 {[%clk
00:07:37]} {[%emt 00:00:11]} d5 {[%clk 00:05:58]} {[%emt 00:00:52]} 18. exd5
{[%clk 00:07:07]} {[%emt 00:00:29]} Nf4 {[%clk 00:04:06]} {[%emt 00:01:52]} 19.
Bxf6 {[%clk 00:06:48]} {[%emt 00:00:19]} Bxf6 {[%clk 00:03:09]} {[%emt
00:00:57]} 20. Ne4 {[%clk 00:06:46]} {[%emt 00:00:01]} Qb6 {[%clk 00:02:53]}
{[%emt 00:00:17]} 21. Nxf6+ {[%clk 00:06:18]} {[%emt 00:00:27]} Qxf6 {[%clk
00:02:51]} {[%emt 00:00:02]} 22. d6 {[%clk 00:06:07]} {[%emt 00:00:11]} Nxh3
{[%clk 00:02:13]} {[%emt 00:00:38]} 23. Rxh3 {[%clk 00:05:58]} {[%emt
00:00:10]} Be6 {[%clk 00:02:10]} {[%emt 00:00:03]} 24. Rh2 {[%clk 00:05:33]}
{[%emt 00:00:23]} Bf5 {[%clk 00:01:58]} {[%emt 00:00:14]} 25. h5 {[%clk
00:05:20]} {[%emt 00:00:13]} gxh5 {[%clk 00:01:33]} {[%emt 00:00:26]} 26. Rxh5
{[%clk 00:05:03]} {[%emt 00:00:17]} Bg6 {[%clk 00:01:28]} {[%emt 00:00:04]} 27.
Qh6 {[%emt 00:00:53]} Qg7 28. Qxg7+ {[%clk 00:04:07]} Kxg7 {[%clk 00:01:27]} 29.
Rxe5 {[%clk 00:04:06]} {[%emt 00:00:02]} Rd7 {[%clk 00:01:13]} {[%emt
00:00:14]} 30. Re7 {[%clk 00:04:04]} {[%emt 00:00:02]} Rfd8 {[%clk 00:01:11]}
31. Rxd7 {[%clk 00:04:02]} {[%emt 00:00:03]} Rxd7 {[%clk 00:01:10]} 32. Nb3
{[%clk 00:04:01]} {[%emt 00:00:02]} b6 {[%clk 00:01:07]} {[%emt 00:00:03]} 33.
Kc1 {[%clk 00:03:42]} {[%emt 00:00:18]} Bh5 {[%clk 00:01:06]} 34. Rd3 {[%clk
00:03:37]} {[%emt 00:00:06]} Bg6 {[%clk 00:01:03]} {[%emt 00:00:03]} 35. Rd5
{[%clk 00:03:30]} {[%emt 00:00:06]} Kf6 {[%clk 00:00:52]} {[%emt 00:00:11]} 36.
Nd4 {[%clk 00:03:27]} {[%emt 00:00:03]} a6 {[%clk 00:00:35]} {[%emt 00:00:18]}
37. b3 {[%clk 00:03:17]} {[%emt 00:00:10]} Bh7 {[%clk 00:00:33]} {[%emt
00:00:01]} 38. Kd2 {[%clk 00:03:10]} {[%emt 00:00:07]} Rd8 {[%clk 00:00:33]} 39.
d7 {[%clk 00:03:02]} {[%emt 00:00:09]} Kg7 {[%clk 00:00:30]} {[%emt 00:00:03]}
40. Nc6 {[%clk 00:03:00]} {[%emt 00:00:02]} *

[Event "Božićni turnir u VaraždinskimToplicama 26.12.2025."]
[Site "Varazdinske Toplice, Croatia"]
[Date "2025.12.26"]
[Round "3.9"]
[White "Veres, Vedran"]
[Black "Bozinovic, Bogdan"]
[Result "*"]
[TimeControl "10"]
[WhiteFideId "79330134"]
[BlackFideId "14502593"]
[WhiteElo "1930"]
[BlackElo "2129"]

1. e4 {[%clk 00:09:59]} {[%emt 00:00:02]} c5 {[%clk 00:09:58]} {[%emt
00:00:02]} 2. g3 {[%clk 00:09:57]} {[%emt 00:00:02]} d5 {[%clk 00:09:56]}
{[%emt 00:00:02]} 3. Bg2 {[%clk 00:09:52]} {[%emt 00:00:04]} dxe4 {[%clk
00:09:54]} {[%emt 00:00:02]} 4. Bxe4 {[%clk 00:09:51]} {[%emt 00:00:02]} Nf6
{[%clk 00:09:53]} {[%emt 00:00:01]} 5. Bg2 {[%clk 00:09:49]} {[%emt 00:00:02]}
Qc7 {[%clk 00:09:46]} {[%emt 00:00:06]} 6. d3 {[%clk 00:09:42]} {[%emt
00:00:07]} Bd7 {[%clk 00:09:41]} {[%emt 00:00:05]} 7. Ne2 {[%clk 00:09:40]}
{[%emt 00:00:02]} Bc6 {[%clk 00:09:40]} {[%emt 00:00:01]} 8. O-O {[%clk
00:09:33]} {[%emt 00:00:08]} Bxg2 {[%clk 00:09:38]} {[%emt 00:00:02]} 9. Kxg2
{[%clk 00:09:31]} {[%emt 00:00:02]} Nc6 {[%clk 00:09:36]} {[%emt 00:00:02]} 10.
Nbc3 {[%clk 00:09:11]} {[%emt 00:00:20]} e6 {[%clk 00:09:24]} {[%emt 00:00:11]}
11. Bf4 {[%clk 00:08:57]} {[%emt 00:00:14]} Qd7 {[%clk 00:09:16]} {[%emt
00:00:09]} 12. Qc1 {[%clk 00:08:24]} {[%emt 00:00:32]} Be7 {[%clk 00:09:11]}
{[%emt 00:00:06]} 13. a3 {[%clk 00:08:21]} {[%emt 00:00:03]} O-O {[%clk
00:09:07]} {[%emt 00:00:04]} 14. h4 {[%clk 00:07:47]} {[%emt 00:00:34]} Rac8
{[%clk 00:09:02]} {[%emt 00:00:05]} 15. Rh1 {[%clk 00:07:21]} {[%emt 00:00:26]}
Nd4 {[%clk 00:08:57]} {[%emt 00:00:04]} 16. Ne4 {[%clk 00:06:29]} {[%emt
00:00:52]} Nxe2 {[%clk 00:08:49]} {[%emt 00:00:08]} 17. Qe3 {[%clk 00:06:07]}
{[%emt 00:00:23]} Nxf4+ {[%clk 00:08:42]} {[%emt 00:00:07]} 18. gxf4 {[%clk
00:06:05]} {[%emt 00:00:01]} Nxe4 {[%clk 00:08:25]} {[%emt 00:00:18]} 19. dxe4
{[%clk 00:06:04]} {[%emt 00:00:02]} Qd4 {[%clk 00:08:19]} {[%emt 00:00:05]} 20.
Qe2 {[%clk 00:06:00]} {[%emt 00:00:04]} Rfd8 {[%clk 00:08:06]} {[%emt
00:00:13]} 21. h5 {[%clk 00:05:56]} {[%emt 00:00:04]} Qd2 {[%clk 00:07:56]}
{[%emt 00:00:10]} 22. Qg4 {[%clk 00:05:55]} {[%emt 00:00:02]} f5 {[%clk
00:07:50]} {[%emt 00:00:05]} 23. exf5 {[%clk 00:05:48]} {[%emt 00:00:06]} Qd5+
{[%clk 00:07:49]} {[%emt 00:00:03]} 24. Kg3 {[%clk 00:05:36]} {[%emt 00:00:12]}
exf5 {[%clk 00:07:46]} {[%emt 00:00:02]} 25. Qe2 {[%clk 00:05:32]} {[%emt
00:00:04]} Bf6 {[%clk 00:07:44]} {[%emt 00:00:01]} 26. h6 {[%clk 00:05:28]}
{[%emt 00:00:04]} g6 {[%clk 00:07:30]} {[%emt 00:00:14]} 27. Rae1 {[%clk
00:05:22]} {[%emt 00:00:07]} Qc6 {[%clk 00:07:26]} {[%emt 00:00:04]} 28. Qc4+
{[%clk 00:05:17]} {[%emt 00:00:05]} Qd5 {[%clk 00:07:18]} {[%emt 00:00:08]} 29.
Re8+ {[%clk 00:05:13]} {[%emt 00:00:05]} Kf7 {[%clk 00:07:17]} 30. Qxd5+ {[%clk
00:05:10]} {[%emt 00:00:04]} Rxd5 {[%clk 00:07:14]} {[%emt 00:00:02]} 31. Rxc8
{[%clk 00:05:09]} {[%emt 00:00:01]} Rd7 {[%clk 00:07:09]} {[%emt 00:00:05]} 32.
Rxc5 {[%clk 00:04:54]} {[%emt 00:00:15]} Bxb2 {[%clk 00:07:05]} {[%emt
00:00:05]} 33. a4 {[%clk 00:04:47]} {[%emt 00:00:07]} b6 {[%clk 00:07:01]}
{[%emt 00:00:04]} 34. Rc8 {[%clk 00:04:40]} {[%emt 00:00:06]} Bf6 {[%clk
00:06:51]} {[%emt 00:00:10]} 35. Re1 {[%clk 00:04:32]} {[%emt 00:00:08]} g5
{[%clk 00:06:47]} {[%emt 00:00:04]} 36. fxg5 {[%emt 00:00:08]} Bxg5 {[%emt
00:00:01]} 37. Rh8 {[%clk 00:04:20]} {[%emt 00:00:03]} Kg6 {[%clk 00:06:33]}
{[%emt 00:00:14]} 38. Re6+ {[%clk 00:04:18]} {[%emt 00:00:02]} Kh5 {[%clk
00:06:32]} {[%emt 00:00:01]} 39. Rf8 {[%clk 00:04:03]} {[%emt 00:00:15]} f4+
{[%clk 00:06:15]} {[%emt 00:00:17]} 40. Kf3 {[%clk 00:03:51]} {[%emt 00:00:11]}
Bxh6 {[%clk 00:06:13]} {[%emt 00:00:02]} 41. Rf5+ {[%clk 00:03:42]} {[%emt
00:00:09]} Bg5 {[%clk 00:06:12]} {[%emt 00:00:02]} 42. Ree5 {[%clk 00:03:40]}
{[%emt 00:00:02]} h6 {[%clk 00:06:11]} 43. Rxf4 {[%clk 00:03:36]} {[%emt
00:00:04]} Rc7 {[%emt 00:00:14]} 44. c4 {[%clk 00:03:30]} Kg6 {[%clk 00:05:56]}
{[%emt 00:00:08]} 45. Rfe4 {[%clk 00:03:28]} {[%emt 00:00:01]} Kh5 {[%clk
00:05:37]} {[%emt 00:00:19]} 46. Ke2 {[%clk 00:03:27]} {[%emt 00:00:01]} Kg6
{[%clk 00:05:27]} {[%emt 00:00:11]} 47. Re6+ {[%clk 00:03:23]} {[%emt
00:00:03]} Kf7 {[%clk 00:05:16]} {[%emt 00:00:48]} 48. f4 {[%clk 00:03:13]}
{[%emt 00:00:08]} Bxf4 {[%clk 00:05:10]} {[%emt 00:00:07]} 49. Kf3 {[%clk
00:02:59]} {[%emt 00:00:14]} Bg5 {[%clk 00:05:08]} 50. R6e5 {[%clk 00:02:56]}
{[%emt 00:00:03]} Rd7 {[%clk 00:05:03]} {[%emt 00:00:05]} 51. Kg4 {[%clk
00:02:55]} {[%emt 00:00:02]} Rd1 {[%clk 00:04:57]} {[%emt 00:00:05]} 52. Rf5+
{[%clk 00:02:48]} {[%emt 00:00:07]} Kg6 {[%clk 00:04:44]} {[%emt 00:00:13]} 53.
Re6+ {[%clk 00:02:45]} {[%emt 00:00:03]} Kg7 {[%clk 00:04:43]} {[%emt
00:00:01]} 54. Rd5 {[%clk 00:02:27]} {[%emt 00:00:18]} Rg1+ {[%clk 00:04:31]}
{[%emt 00:00:12]} 55. Kh5 {[%clk 00:02:19]} {[%emt 00:00:06]} Kf7 {[%clk
00:04:30]} {[%emt 00:00:03]} 56. Rc6 {[%clk 00:02:16]} {[%emt 00:00:03]} Rh1+
{[%clk 00:04:16]} {[%emt 00:00:15]} 57. Kg4 {[%clk 00:02:15]} Rg1+ {[%clk
00:04:15]} {[%emt 00:00:02]} 58. Kh3 {[%clk 00:02:10]} {[%emt 00:00:04]} Rc1
{[%clk 00:04:04]} {[%emt 00:00:12]} 59. Rd7+ {[%clk 00:02:07]} {[%emt
00:00:02]} Ke8 {[%clk 00:04:03]} 60. Rxa7 {[%clk 00:02:05]} {[%emt 00:00:03]}
Bd8 {[%clk 00:03:52]} {[%emt 00:00:11]} 61. Ra8 {[%clk 00:01:57]} {[%emt
00:00:08]} Kd7 {[%clk 00:03:44]} {[%emt 00:00:07]} 62. Rcc8 {[%clk 00:01:50]}
{[%emt 00:00:07]} Bc7 {[%clk 00:03:39]} {[%emt 00:00:05]} 63. Rh8 {[%clk
00:01:46]} {[%emt 00:00:03]} Rc3+ {[%clk 00:03:37]} {[%emt 00:00:03]} 64. Kg2
{[%clk 00:01:45]} Rxc4 {[%clk 00:03:30]} {[%emt 00:00:08]} 65. Rxh6 {[%clk
00:01:41]} {[%emt 00:00:03]} Rc5 {[%clk 00:03:26]} {[%emt 00:00:04]} 66. Ra7
{[%clk 00:01:39]} {[%emt 00:00:03]} Kc8 {[%clk 00:03:20]} {[%emt 00:00:06]} 67.
Rh8+ {[%clk 00:01:36]} {[%emt 00:00:03]} Kd7 {[%clk 00:03:19]} {[%emt
00:00:01]} 68. Rh7+ {[%clk 00:01:35]} Kc8 {[%clk 00:03:18]} {[%emt 00:00:01]}
69. Kf3 {[%clk 00:01:26]} {[%emt 00:00:08]} Kb8 {[%clk 00:03:17]} {[%emt
00:00:01]} 70. Ra6 {[%clk 00:01:23]} {[%emt 00:00:04]} Kb7 {[%clk 00:03:16]} 71.
Rxc7+ {[%clk 00:01:18]} {[%emt 00:00:03]} Rxc7 {[%clk 00:03:14]} {[%emt
00:00:03]} 72. Rxb6+ {[%clk 00:01:15]} {[%emt 00:00:03]} Kxb6 {[%clk 00:03:13]}
{[%emt 00:00:02]} *

[Event "Božićni turnir u VaraždinskimToplicama 26.12.2025."]
[Site "Varazdinske Toplice, Croatia"]
[Date "2025.12.26"]
[Round "3.10"]
[White "Vukmirovic, Dusan"]
[Black "Mesar, Darko"]
[Result "*"]
[TimeControl "10"]
[WhiteFideId "938785"]
[BlackFideId "14531038"]
[WhiteElo "2082"]
[BlackElo "1851"]

1. e4 {[%clk 00:10:00]} {[%emt 00:03:47]} c5 {[%clk 00:09:57]} {[%emt
00:00:05]} 2. Nf3 {[%clk 00:09:57]} a6 {[%clk 00:09:54]} {[%emt 00:00:03]} 3.
c3 {[%clk 00:09:55]} {[%emt 00:00:02]} d5 {[%clk 00:09:52]} {[%emt 00:00:02]} 4.
exd5 {[%clk 00:09:42]} {[%emt 00:00:13]} Qxd5 {[%clk 00:09:50]} {[%emt
00:00:02]} 5. d4 {[%clk 00:09:36]} {[%emt 00:00:06]} e6 {[%clk 00:09:46]}
{[%emt 00:00:04]} 6. Bd3 {[%clk 00:09:26]} {[%emt 00:00:10]} Nf6 {[%clk
00:09:44]} {[%emt 00:00:02]} 7. O-O {[%clk 00:09:22]} {[%emt 00:00:04]} Nbd7
{[%clk 00:09:34]} {[%emt 00:00:10]} 8. c4 {[%clk 00:09:18]} {[%emt 00:00:04]}
Qc6 {[%clk 00:09:30]} {[%emt 00:00:03]} 9. Nc3 {[%clk 00:08:31]} {[%emt
00:00:49]} Be7 {[%clk 00:09:17]} {[%emt 00:00:13]} 10. d5 {[%clk 00:08:05]}
{[%emt 00:00:26]} exd5 {[%clk 00:09:03]} {[%emt 00:00:14]} 11. Nxd5 {[%clk
00:07:54]} {[%emt 00:00:10]} Nxd5 {[%clk 00:08:41]} {[%emt 00:00:22]} 12. cxd5
{[%clk 00:07:53]} {[%emt 00:00:02]} Qxd5 {[%clk 00:08:31]} {[%emt 00:00:10]} 13.
Re1 {[%clk 00:07:47]} {[%emt 00:00:05]} Nf6 {[%clk 00:08:23]} {[%emt 00:00:08]}
14. Bg5 {[%clk 00:07:26]} {[%emt 00:00:20]} Be6 {[%clk 00:08:08]} {[%emt
00:00:16]} 15. Qc2 {[%clk 00:06:28]} {[%emt 00:00:58]} h6 {[%clk 00:07:42]}
{[%emt 00:00:26]} 16. Bxf6 {[%clk 00:06:25]} {[%emt 00:00:03]} Bxf6 {[%clk
00:07:40]} {[%emt 00:00:02]} 17. Rad1 {[%clk 00:06:23]} {[%emt 00:00:02]} Qc6
{[%clk 00:07:24]} {[%emt 00:00:16]} 18. Be4 {[%clk 00:06:04]} {[%emt 00:00:19]}
Qc7 {[%clk 00:07:07]} {[%emt 00:00:17]} 19. Qa4+ {[%clk 00:04:36]} {[%emt
00:01:29]} b5 {[%clk 00:06:35]} {[%emt 00:00:31]} 20. Qa3 {[%clk 00:04:35]}
{[%emt 00:00:01]} Ra7 {[%clk 00:06:02]} {[%emt 00:00:33]} 21. Bd5 {[%clk
00:04:22]} {[%emt 00:00:12]} O-O {[%clk 00:05:50]} {[%emt 00:00:13]} 22. Rxe6
{[%clk 00:03:50]} {[%emt 00:00:32]} fxe6 {[%clk 00:05:48]} {[%emt 00:00:02]} 23.
Bxe6+ {[%clk 00:03:49]} Kh8 {[%clk 00:05:44]} {[%emt 00:00:04]} 24. Bb3 {[%clk
00:02:16]} {[%emt 00:01:31]} Re8 {[%clk 00:05:21]} {[%emt 00:00:25]} 25. Bc2
{[%clk 00:02:06]} {[%emt 00:00:10]} c4 {[%clk 00:05:07]} {[%emt 00:00:15]} 26.
Qb4 {[%clk 00:01:42]} {[%emt 00:00:24]} Qe7 {[%clk 00:04:54]} {[%emt 00:00:13]}
27. Qd2 {[%clk 00:01:12]} {[%emt 00:00:29]} Bxb2 {[%clk 00:04:22]} {[%emt
00:00:31]} 28. Bb1 {[%clk 00:01:04]} {[%emt 00:00:09]} Bf6 {[%clk 00:04:15]}
{[%emt 00:00:07]} 29. Qc2 {[%clk 00:01:03]} g5 {[%clk 00:03:58]} {[%emt
00:00:17]} 30. Qg6 {[%clk 00:01:01]} {[%emt 00:00:02]} Qf8 {[%clk 00:03:27]}
{[%emt 00:00:31]} 31. h4 {[%clk 00:00:59]} {[%emt 00:00:03]} gxh4 {[%clk
00:02:42]} {[%emt 00:00:45]} 32. Rd5 {[%clk 00:00:53]} {[%emt 00:00:05]} Bg5
{[%clk 00:00:44]} {[%emt 00:01:59]} 33. Rf5 {[%clk 00:00:36]} {[%emt 00:00:17]}
Qg8 {[%clk 00:00:35]} {[%emt 00:00:08]} 34. Rxg5 {[%clk 00:00:30]} {[%emt
00:00:07]} hxg5 {[%clk 00:00:31]} {[%emt 00:00:04]} 35. Qh6+ {[%clk 00:00:16]}
{[%emt 00:00:12]} Rh7 {[%clk 00:00:29]} {[%emt 00:00:03]} 36. Bxh7 {[%clk
00:00:08]} {[%emt 00:00:08]} Qxh7 {[%clk 00:00:28]} {[%emt 00:00:01]} 37. Qf6+
{[%clk 00:00:06]} {[%emt 00:00:02]} Qg7 {[%clk 00:00:26]} {[%emt 00:00:02]} 38.
Qf5 {[%clk 00:00:02]} {[%emt 00:00:04]} Rf8 {[%clk 00:00:23]} {[%emt 00:00:04]}
39. Qg4 {[%clk 00:00:01]} Rf4 {[%clk 00:00:21]} {[%emt 00:00:01]} 40. Qh5+
{[%clk 00:00:01]} {[%emt 00:00:01]} Kg8 {[%clk 00:00:19]} {[%emt 00:00:01]} 41.
Qe8+ {[%clk 00:00:00]} Rf8 {[%clk 00:00:17]} {[%emt 00:00:02]} 42. Qe6+ {[%clk
00:00:00]} {[%emt 00:00:01]} Kh8 {[%clk 00:00:13]} {[%emt 00:00:03]} 43. Qg4
{[%emt 00:00:18]} *